{"text_format":"1","workbook":"xlsx","n_sheets":9,"sheets":["DATOS","Orden de Internamiento","Solicitud Intervención QX","Cx segura Pag1 (lista_verif)","Cx seg Pag2 (semaf_preop)","Consentimiento Intervención Qx","Consentimiento Hemoderivados","Consentimiento Anestesia","Solicitud Patología"],"not_rendered":{"charts":0,"images":3,"macros":1,"external_links":0,"defined_names":9,"comments":0,"pivot_tables":0},"unopened":[],"bounds":{"document_bytes":16777216,"sheet_cells":100000,"rows_first":2000,"rows_last":500,"rows_between":2000,"halvings":0,"cell_chars":16384,"cell_head_chars":4096},"cells_cut":0,"cells_raw":0,"read":"whole","date_system":"1900"}

{"sheet":"DATOS","index":0,"n_rows":70,"n_cols":6,"rows_kept":70,"cut":false,"hidden":false,"merged":[[3,1,3,2],[5,1,5,2],[32,1,32,2],[33,1,33,2],[34,1,34,2],[9,1,10,2],[25,1,25,2],[23,1,23,2],[17,1,17,2],[2,1,2,3],[4,1,4,2],[19,1,19,2],[29,1,29,2],[6,1,6,2],[11,1,11,2],[7,1,7,2],[12,1,12,2],[14,1,14,2],[15,1,15,2],[16,1,16,2],[18,1,18,2],[21,1,21,2],[22,1,22,2],[20,1,20,2],[13,1,13,2],[38,1,38,2],[36,1,36,2],[31,1,31,2],[30,1,30,2],[24,1,24,2],[26,1,26,2],[27,1,27,2],[28,1,28,2],[35,1,35,2],[37,1,37,2]]}
[]
[]
[null,"DATOS PARA PROGRAMACION QUIRURGICA"]
[null,"TIPO DE INTERNAMIENTO:"]
[null,"CAMA:"]
[null,"PROCEDIMIENTO:"]
[null,"NOMBRE:"]
[null,"EXPEDIENTE:"]
[null,"FECHA DE NACIMIENTO:"]
[null,"EDAD:"]
[]
[null,"SEXO:"]
[null,"DIAGNOSTICO:"]
[null,"CIRUGIA:"]
[null,"CIRUJANO:"]
[null,"SERVICIO:"]
[null,"FECHA  Y HORA DE INTERNAMIENTO:"]
[null,"TURNO:"]
[null,"FECHA DE CIRUGÍA:"]
[null,"HORA DE CIRUGIA:"]
[null,"FECHA Y HORA DE VALORACION PREANESTÉSICA:"]
[null,"PESO:",null,null,"Kg"]
[null,"TALLA:",null,null,"cm"]
[null,"Hb:"]
[null,"Hto:"]
[null,"Plaquetas:"]
[null,"Grupo y Rh:"]
[null,"TP:"]
[null,"TPT:"]
[null,"CONDICION DEL ENFERMO:"]
[null,"COMPLICACIONES:"]
[null,"SOLICITAR SANGRE:"]
[null,"PG:"]
[null,"PFC:"]
[null,"CONCENTRADOS PLAQUETARIOS:"]
[null,"CRIOPRECIPITADOS:"]
[null,"AYUNO:"]
[null,"OBSERVACIONES:"]
[null,"MATERIAL A SOLICITAR:"]
[]
[]
[null,"MASCULINO",null,"ESTABLE",null,"BRONCOSCOPIA"]
[null,"FEMENINO",null,"DELICADO","DRA. ARIATHNA HERNANDEZ SEGURA / 4700402","CIRUGIA"]
[null,"   ",null,"GRAVE","DRA. DAENA JUDITH ANDRES MARTINEZ / 11152167","CIRUGIA CARDIOTORACICA"]
[null,"AÑO",null,"MUY GRAVE","DRA. IRENE JARQUIN LOPEZ / 3815131","CIRUGIA MAXILOFACIAL & ODONTOLOGIA"]
[null,"AÑOS",null,null,"DRA. ISABEL DINORATH DIAZ ROJAS / 3279053","CIRUGIA ONCOLOGICA"]
[null,"MES",null,"SI","DRA. MARICRUZ LUIS CARDENAS / 6820492","CIRUGIA PLASTICA"]
[null,"MESES",null,"NO","DRA. PAULINA SANCHEZ TAPIA / 7440532","ENDOSCOPIA"]
[null,"DIA ",null,null,"DRA. ROCIO RAMIREZ ROBLES / 3162838","NEFROLOGIA"]
[null,"DIAS",null,null,"DR. ADONIRAM CARRASCO CASTILLO / 6323605","NEUROCIRUGIA"]
[null,null,null,null,"DR. ALEX TONY REYES SANTIAGO / 9177508","OFTALMOLOGIA"]
[null,"ELECTIVO",null,null,"DR. AMADOR RAMIREZ RESENDIZ / 6119038","OTORRINOLARINGOLOGIA"]
[null,"URGENTE",null,null,"DR. ARTURO ADALBERTO BAILON ORTEGA / 11771787","NEFROLOGÍA"]
[null,null,null,null,"DR. DANIEL ROSENTHAL GARBER / 11904686","NEUMOLOGÍA PEDIÁTRICA"]
[null,"MATUTINO",null,null,"DR. EFREN EMMANUEL JARQUIN GONZALEZ / 10220028\n"]
[null,"VESPERTINO",null,null,"DR. ELISEO ANTONIO SOLANO ZARATE / 6926928"]
[null,"NOCTURNO",null,null,"DR. FELIX LEONEL ANTONIO HERNANDEZ / 1508941"]
[null,"JORNADA",null,null,"DR. GUILLERMO JORGE CASTELLANOS GARCIA / 3411775"]
[null,null,null,null,"DR. JOSE VICENTE MUÑOZ REYES / 7237163"]
[null,null,null,null,"DR. JUAN CARLOS PAEZ RIVERA / 8129857"]
[null,null,null,null,"DR. JUAN JOSE GARCIA DOMINGUEZ / 3444688"]
[null,null,null,null,"DR. JULIO RAMIREZ RUIZ / 5397232"]
[null,null,null,null,"DR. LUIS FERNANDO HERNANDEZ GUTIERREZ / 8536313"]
[null,null,null,null,"DR. MANUEL TRINIDAD LOPEZ VAZQUEZ / 1347975"]
[null,null,null,null,"DR. NICCOLO MANUEL RUIZ CASTRO / 6745457"]
[null,null,null,null,"DR. RENE JOB TORRES MARTINEZ / 8475675"]
[null,null,null,null,"DR. EMMANUEL ALEXANDER NAVARRO CASTILLO / 10487392"]
[null,null,null,null,"DR. ALLEN JESÚS VICTORIA AYALA / 13255889"]
[null,null,null,null,"DRA. NAYELI MARISOL RODRÍGUEZ VELASCO / 12443660"]
[null,null,null,null,"DR. JOSE LUIS HERNANDEZ DIAZ / 13742308"]

{"sheet":"Orden de Internamiento","index":1,"n_rows":52,"n_cols":11,"rows_kept":52,"cut":false,"hidden":false,"merged":[[51,9,51,10],[46,3,46,9],[44,3,44,9],[45,3,45,9],[26,6,26,8],[42,3,42,4],[48,1,48,10],[40,1,40,10],[41,1,41,10],[47,1,47,10],[43,3,43,9],[33,7,33,8],[37,5,37,7],[38,1,38,2],[38,3,38,10],[24,1,24,10],[31,1,31,10],[11,3,11,10],[12,3,12,10],[17,2,17,10],[16,3,16,6],[29,1,29,8],[22,1,22,10],[14,4,14,7],[20,7,20,9],[1,2,1,5],[2,2,2,4],[3,2,3,4],[10,3,10,4],[10,6,10,10],[8,2,8,6],[9,3,9,6],[6,8,6,10]]}
[]
[null,null,"ORDEN DE INTERNAMIENTO"]
[null,null,"SUBDIRECCIÓN MÉDICA "]
[null,"                     ","DEPARTAMENTO DE CIRUGÍA PEDIÁTRICA"]
[]
[]
[null,null,null,null,null,null,null,"Tipo de internamiento:",{"$f":"UPPER(DATOS!D4)","v":""}]
[]
[null,"NOMBRE:",{"$f":"DATOS!D7","v":0},null,null,null,null,"EDAD:",{"$f":"CONCATENATE(DATOS!D10,DATOS!B44, DATOS!D11)","v":"   "},"SEXO:",{"$f":"DATOS!D12","v":0}]
[null,"FECHA DE NACIMIENTO:",null,{"$f":"DATOS!D9","v":"00:00:00"}]
[null,"EXPEDIENTE:",null,{"$f":"DATOS!D8","v":0},null,"SERVICIO:",{"$f":"DATOS!D16","v":0}]
[null,"DIAGNÓSTICO:",null,{"$f":"DATOS!D13","v":0}]
[null,"CIRUGÍA PROGRAMADA:",null,{"$f":"DATOS!D14","v":0}]
[]
[null,"FECHA Y HORA DE INTERNAMIENTO:",null,null,{"$f":"DATOS!D17","v":"00:00:00"}]
[]
[null,"FECHA DE CIRUGÍA:",null,{"$f":"DATOS!D19","v":"00:00:00"},null,null,null,{"$f":"DATOS!D20","v":"00:00:00"}]
[null,"CIRUJANO:",{"$f":"DATOS!D15","v":0}]
[]
[]
[null,"VALORACION PRE ANESTÉSICA:",null,"SI",null,"FECHA Y HORA:",null,{"$f":"DATOS!D21","v":"00:00:00"}]
[]
[null,"*Pasar a Trabajo Social para trámite de donación de Sangre*"]
[]
[null,"INDICACIONES PARA EL PACIENTE:"]
[]
[null,"1. Presentarse en Admisión Hospitalaria (junto a Urgencias) el día:",null,null,null,null,{"$f":"DATOS!D17","v":"00:00:00"}]
[null,"2. Presentar comprobante de donación de sangre"]
[null,"3. Aseo general del paciente"]
[null,"4. El paciente debe acudir sano (sin fiebre, tos, gripa, diarrea)"]
[]
[null,"INDICACIONES PARA EL HOSPITAL"]
[]
[null,"1. DIETA:",null,"AYUNO DE",null,"HORAS",null,"(INICIA A LAS:",null,null,"HORAS)"]
[null,"2. SVT Y CGE"]
[null,"3. VALORACION PREANESTESICA:",null,null,"DIA PREVIO A LA CIRUGIA"]
[null,"4. SOLICITAR SANGRE: ",null,{"$f":"DATOS!D32","v":0},null,null,"PG",null,null,"PFC"]
[null,null,null,null,null,"CONCENTRADOS PLAQUETARIOS",null,null,null,"CRIOPRECIPITADOS"]
[null,"5. OTRAS INDICACIONES:"]
[]
[null,"AL INGRESO HOSPITALARIO"]
[null,"Canalizar con:"]
[null,"1.-","Solución",null,null,"ml","pasar",null,"ml/hora"]
[null,"2.-","Medicamentos:"]
[null,null,null,"2.-"]
[null,null,null,"3.-"]
[null,null,null,"4.-"]
[]
[null,"***** EN CASO DE CIRUGIA AMBULATORIA PODRÁ CANALIZARSE EN QUIROFANO *****"]
[]
[]
[null,null,null,null,null,null,null,null,null,"HNO-SM-MED-2021-09"]

{"sheet":"Solicitud Intervención QX","index":2,"n_rows":51,"n_cols":11,"rows_kept":51,"cut":false,"hidden":false,"merged":[[46,3,46,5],[46,8,46,9],[8,2,8,3],[9,2,9,3],[40,6,40,10],[34,1,34,10],[31,1,31,2],[33,1,33,3],[14,1,15,10],[17,1,18,10],[19,3,19,10],[20,3,20,4],[33,8,33,9],[27,5,30,6],[25,1,25,3],[16,1,16,10],[24,7,24,10],[45,1,45,5],[41,1,43,5],[41,6,43,10],[35,1,39,10],[40,1,40,5],[44,6,44,10],[44,1,44,5],[2,1,2,7],[3,3,3,6],[4,3,4,6],[31,6,31,9],[20,5,20,6],[20,1,20,2],[7,2,7,10],[8,7,8,10],[10,8,10,10],[20,7,20,10],[10,5,10,6],[11,5,11,6],[22,1,23,10],[24,2,24,5],[21,1,21,10],[13,1,13,10]]}
[]
[]
[null,"       SOLICITUD DE INTERVENCIÓN QUIRÚRGICA"]
[null,null,null,"SUBDIRECCIÓN MÉDICA"]
[null,"  ",null,"DEPARTAMENTO DE CIRUGÍA PEDIÁTRICA"]
[]
[]
[null,"NOMBRE:",{"$f":"DATOS!D7","v":0}]
[null,"SEXO:",{"$f":"DATOS!D12","v":0},null,null,"FECHA DE NACIMIENTO:",null,{"$f":"DATOS!D9","v":"00:00:00"}]
[null,"EXPEDIENTE:",{"$f":"DATOS!D8","v":0}]
[null,null,null,null,"DEPENDENCIA:","HNO",null,"CAMA:",{"$f":"DATOS!D5","v":0}]
[null,null,null,null,"SERVICIO:",{"$f":"DATOS!D16","v":0},null,"EDAD:",{"$f":"CONCATENATE(DATOS!D10, DATOS!B44, DATOS!D11)","v":"   "},"PESO:",{"$f":"CONCATENATE(DATOS!D22,DATOS!E22)","v":"Kg"}]
[]
[null,"DIAGNÓSTICO:"]
[null,{"$f":"DATOS!D13","v":0}]
[]
[null,"OPERACIÓN:"]
[null,{"$f":"DATOS!D14","v":0}]
[]
[null,"ANESTESIA PROPUESTA:"]
[null,"FECHA SOLICITADA:",null,{"$f":"DATOS!D19","v":"00:00:00"},null,"HORA SOLICITADA:",null,{"$f":"DATOS!D20","v":"00:00:00"}]
[null,"INSTRUMENTAL ESPECIAL:"]
[null,{"$f":"DATOS!D39","v":0}]
[]
[null,"CIRUJANO: ",{"$f":"DATOS!D15","v":0},null,null,null,"AYUDANTE:"]
[null,"CONDICIONES DEL ENFERMO:",null,null,{"$f":"DATOS!D30","v":0}]
[null,"NIVEL DE HEMOGLOBINA"]
[null,"Hb",{"$f":"DATOS!D24","v":0},"Grupo y Rh",{"$f":"DATOS!D27","v":0},"CANTIDAD DE SANGRE SOLICITADA:",null,null,"PG",{"$f":"DATOS!D33","v":0}]
[null,"Hto ",{"$f":"DATOS!D25","v":0},"TP",{"$f":"DATOS!D28","v":0},null,null,null,"PFC",{"$f":"DATOS!D34","v":0}]
[null,"Plaquetas",{"$f":"DATOS!D26","v":0},"TPT",{"$f":"DATOS!D29","v":0},null,null,null,"CRIOPRECIPITADOS",{"$f":"DATOS!D36","v":0}]
[null,null,null,null,null,null,null,null,"CONCENTRADOS PLAQUETARIOS",{"$f":"DATOS!D35","v":0}]
[null,"RIESGO OBLIGATORIO: ",null,"(*) (**) (***) (****) (*****)",null,null,"RADIOGRAFIA TRANSOPERATORIA"]
[null,null,null,"1      2       3        4           5",null,null,"SI","-","NO","-"]
[null,"BIOPSIA TRANSOPERATORIA:",null,null,"-","TIEMPO PROBABLE DE DURACIÓN",null,null,"-"]
[null,"OBSERVACIONES:"]
[null,{"$f":"DATOS!D38","v":0}]
[]
[]
[]
[]
[null,"AUTORIZA",null,null,null,null,"ATENTAMENTE"]
[null,null,null,null,null,null,{"$f":"DATOS!D15","v":0}]
[]
[]
[null,"RESPONSABLE DEL PACIENTE",null,null,null,null,"EL CIRUJANO"]
[null,"FECHA Y HORA EN QUE SE RECIBIÓ LA SOLICITUD"]
[null,"PROGRAMADA PARA:",null,null,null,null,null,"HORA:"]
[]
[]
[]
[null,null,null,null,null,null,null,null,null,"HNO-SM-MED-2023-01"]

{"sheet":"Cx segura Pag1 (lista_verif)","index":3,"n_rows":39,"n_cols":13,"rows_kept":39,"cut":false,"hidden":false,"merged":[[7,9,7,12],[11,5,12,8],[9,0,9,4],[11,0,11,4],[13,0,13,4],[9,5,9,8],[15,0,15,4],[32,0,32,4],[22,9,23,12],[24,9,25,12],[31,9,31,12],[32,11,32,12],[32,6,32,7],[0,0,0,9],[0,12,1,12],[1,0,1,9],[7,5,7,8],[34,9,34,12],[17,5,17,8],[14,5,15,8],[19,5,20,8],[15,9,15,12],[20,9,21,12],[28,10,29,12],[29,5,29,8],[27,9,27,12],[20,0,20,4],[7,0,7,4],[22,0,22,4],[2,3,2,6],[4,10,4,11],[5,0,5,1],[5,5,5,6],[4,7,4,8],[4,1,4,4],[5,2,5,3]]}
["LISTA DE VERIFICACIÓN DE CIRUGÍA SEGURA"]
["SUBDIRECCIÓN MÉDICA"]
[null,null,null,"DEPARTAMENTO DE CIRUGÍA PEDIÁTRICA"]
[]
["Nombre:",{"$f":"DATOS!D7","v":0},null,null,null,null,"Expediente:",{"$f":"DATOS!D8","v":0},null,null,"Fecha de nacimiento:",null,{"$f":"DATOS!D9","v":"00:00:00"}]
["Fecha de la cirugía:",null,{"$f":"DATOS!D19","v":"00:00:00"},null,null,"Hora de la cirugía:",null,{"$f":"DATOS!D20","v":"00:00:00"}]
[]
["Antes de la inducción anestésica (Anestesiólogo y enfermera circulante",null,null,null,null,"Antes de la incisión cutánea (Cirujano, anestesiólogo y enfermera circulante)",null,null,null,"Antes de que el paciente salga del quirófano (Cirujano, anestesiólogo y enfermera instrumentista y circulante)"]
["ENFERMERA CIRCULANTE",null,null,null,null,"CIRUJANO:",null,null,null,"CIRUJANO VERIFICA"]
["1. El paciente confirma su identidad, el sitio quirúrgico, el procedimiento y su consentimiento",null,null,null,null,"1. Todos los miembros del equipo se hayan presentado por su nombre y función.",null,null,null,"1. Procedimiento y registro"]
["SI",null,"NO ",null,null,"SI",null,"NO ",null,"2. Plan de vigilancia postquirúrgica"]
["2. Sitio de incisión quirúrgica marcado",null,null,null,null,"2. Confirmada la identidad del paciente, el sitio quirúrgico y el procedimiento",null,null,null,"ANESTESIÓLOGO VERIFICA"]
["SI",null,"NO ",null,null,null,null,null,null,"1. Cuidado de vía aérea"]
["3.Duración de la cirugía >= a 2 horas",null,null,null,null,"SI",null,"NO ",null,"2. Vigilancia de sangrado"]
["SI",null,"NO ",null,null,"3. Se ha administrado profilaxis antibiòtica en los últimos 60 minutos",null,null,null,"3. Laboratorio o imagen postoperatorios"]
["4. Equipo o implantes especiales verificado",null,null,null,null,null,null,null,null,"4. Comunicación asertiva de condiciones clave al equipo de recuperaciòn o terapia"]
["SI",null,"NO ",null,null,"SI",null,"NO ",null,"5. Verificar esterilidad del equipo"]
["ANESTESIÓLOGO",null,null,null,null,"PREVENCION DE EVENTOS CRITICOS"]
["1. Peso del paciente",null,{"$f":"DATOS!D22","v":0},"Kg",null,"CIRUJANO VERIFICA"]
[null,null,null,null,null,"Pasos críticos, riesgos anticipidados, sangrado esperado, duración de la cirugía",null,null,null,"ENFERMERA CIRCULANTE"]
["2. Oxímetro de pulso en el paciente y funcionando oximetría bien",null,null,null,null,null,null,null,null,"1. Recuento de gasas, compresas, agujas e instrumental completo"]
["SI",null,"NO ",null,null,"SI",null,"NO "]
["3. Medidas contra hipotermia aplicadas",null,null,null,null,null,null,null,null,"2. Verificar si existen problemas que resolver relacionado al instrumental y los equipos"]
["SI",null,"NO ",null,null,"ANESTESIÓLOGO VERIFICA"]
["4. El paciente tiene alergias",null,null,null,null,"Acceso vascular adecuado",null,null,null,"3. Etiquetado de las muestras patológicas, con el nombre correcto del paciente"]
["SI",null,"NO ",null,null,"SI",null,"NO "]
["5. Vía aerea difícil, riesgo de broncoaspiración",null,null,null,null,"Plan de monitorización transquirúrgica"]
["SI",null,"NO ",null,null,"SI",null,"NO ",null,"NOMBRES DEL EQUIPO PARTICIPANTE EN LA CIRUGIA"]
["Si hay material y equipo disponible",null,null,null,null,"ENFERMERA CIRCULANTE VERIFICA",null,null,null,"CIRUJANO",{"$f":"DATOS!D15","v":0}]
["SI",null,"NO ",null,null,"Esterilidad de equipos, medicamentos y soluciones rotuladas"]
["6. Riesgo de hemorragia >500 ml o 7 ml/Kg en niños",null,null,null,null,"SI",null,"NO ",null,"ANESTESIOLOGO"]
["SI",null,"NO ",null,null,"Resultado del integrador químico:"]
["Si, se ha previsto la disponibilidad de lìquidos y hemoderivados, dos vías IV o central",null,null,null,null,null,"VIRO",null,null,"INSTRUMENTISTA"]
["SI",null,"NO ",null,null,"SI",null,"NO ",null,"CIRCULANTE"]
["¿Existen dudas?",null,null,null,null,"¿Existen dudas?"]
[null,null,"SI= NO EMPIEZA CIRUGÍA",null,null,null,"SI= NO EMPIEZA CIRUGÍA"]
[null,null,"NO= EMPIEZA CIRUGÍA",null,null,null,"NO= EMPIEZA CIRUGÍA"]
[]
[null,null,null,null,null,null,null,null,null,null,null,null,"HNO-SM-MED-2021-08"]

{"sheet":"Cx seg Pag2 (semaf_preop)","index":4,"n_rows":37,"n_cols":15,"rows_kept":37,"cut":false,"hidden":false,"merged":[[33,1,33,3],[33,4,33,5],[33,6,33,7],[34,1,34,3],[34,4,34,5],[34,6,34,7],[31,1,31,3],[31,4,31,5],[31,6,31,7],[32,1,32,3],[32,4,32,5],[32,6,32,7],[29,1,29,3],[29,4,29,5],[29,6,29,7],[30,1,30,3],[30,4,30,5],[30,6,30,7],[27,1,27,3],[27,4,27,5],[27,6,27,7],[28,1,28,3],[28,4,28,5],[28,6,28,7],[25,1,25,3],[25,4,25,5],[25,6,25,7],[26,1,26,3],[26,4,26,5],[26,6,26,7],[21,1,21,3],[21,4,21,5],[21,6,21,7],[22,1,22,3],[22,4,22,5],[22,6,22,7],[23,1,23,3],[23,4,23,5],[23,6,23,7],[24,1,24,3],[24,4,24,5],[24,6,24,7],[2,1,2,9],[3,1,3,9],[11,1,11,3],[11,4,11,5],[11,6,11,7],[6,0,6,1],[6,2,6,3],[6,5,6,8],[16,1,16,3],[16,4,16,5],[16,6,16,7],[13,1,13,3],[13,4,13,5],[6,13,6,14],[15,1,15,7],[13,6,13,7],[14,1,14,3],[14,4,14,5],[14,6,14,7],[12,1,12,3],[12,4,12,5],[12,6,12,7],[9,1,9,3],[9,4,9,5],[9,6,9,7],[10,1,10,3],[10,4,10,5],[10,6,10,7],[20,1,20,3],[20,4,20,5],[20,6,20,7],[17,1,17,3],[17,4,17,5],[17,6,17,7],[18,1,18,3],[18,4,18,5],[18,6,18,7],[19,1,19,3],[19,4,19,5],[19,6,19,7]]}
[]
[]
[null,"SEMÁFORO PREOPERATORIO"]
[null,"SUBDIRECCIÓN MÉDICA"]
[null,null,null,"DEPARTAMENTO DE CIRUGÍA PEDIÁTRICA"]
[]
["Nombre:",null,{"$f":"DATOS!D7","v":0},null,null,"Expediente:",null,null,null,{"$f":"DATOS!D8","v":0},null,"Fecha de nacimiento:",null,{"$f":"DATOS!D9","v":"00:00:00"}]
[]
[]
[null,"COMPRUEBE",null,null,"SI",null,"NO"]
[1,"Peso."]
[2,"Diagnósticos."]
[3,"Cirugía a efectuar y anestesiólogo enterado."]
[4,"Marcaje quirúrgico."]
[5,"Ayuno completo."]
[6,"Se evaluó y/o controló:"]
[null," Alergia.",null,null,null,null,"xx"]
[null," Vía aérea.",null,null,null,null,"xx"]
[null," Cardiopatía.",null,null,null,null,"xx"]
[null," Enfermedad infecciosa.",null,null,null,null,"xx"]
[null," Nefropatía.",null,null,null,null,"xx"]
[null," Hepatopatía.",null,null,null,null,"xx"]
[null," Enfermedad neurológica.",null,null,null,null,"xx"]
[7,"Hemáticos en banco de sangre (si amerita)."]
[8,"Antibióticos profilácticos listos (si amerita)."]
[9,"Estudios de imagen con paciente (si tiene)."]
[10,"Medicamentos que recibe."]
[11,"Cama de destino disponible."]
[12,"Nota preoperatoria en expediente."]
[13,"Consentimiento firmado en expediente."]
[14,"Catéter o implante con paciente (si amerita)."]
[15,"Equipo solicitado listo en quirófano."]
[16,"Valoración preanestésica."]
[]
[]
[]
[null,null,null,null,null,null,null,null,null,null,null,null,null,null,"HNO-SM-ENF-2021-06"]

{"sheet":"Consentimiento Intervención Qx","index":5,"n_rows":48,"n_cols":11,"rows_kept":48,"cut":false,"hidden":false,"merged":[[39,1,39,10],[41,1,42,10],[44,1,44,4],[44,7,44,10],[45,1,45,4],[45,7,45,10],[36,1,36,4],[36,7,36,10],[37,7,37,10],[23,1,24,10],[25,1,26,10],[27,1,28,10],[33,1,33,10],[34,1,35,10],[29,1,29,10],[31,1,31,10],[16,1,16,10],[13,1,13,10],[10,1,10,10],[22,1,22,10],[30,1,30,10],[2,2,2,5],[3,2,3,5],[1,1,1,7],[47,8,47,9],[21,1,21,10],[37,1,38,4],[43,1,43,10],[5,1,5,10],[7,2,7,6],[8,3,8,6],[9,1,9,2],[9,3,9,7],[11,1,12,10],[14,1,15,10],[17,1,19,10],[9,9,9,10]]}
[]
[null,"CONSENTIMIENTO INFORMADO PARA INTERVENCIÓN QUIRÚRGICA"]
[null,null,"SUBDIRECCIÓN MÉDICA"]
[null,null,"DEPARTAMENTO DE CIRUGÍA PEDIÁTRICA"]
[]
[]
[]
[null,"Lugar:","San Bartolo Coyotepec, Oaxaca ",null,null,null,null,"Fecha:",{"$f":"DATOS!D19","v":"00:00:00"},"HORA",{"$f":"DATOS!D20","v":"00:00:00"}]
[null,"Nombre del paciente:",null,{"$f":"DATOS!D7","v":0},null,null,null,"Edad:",{"$f":"CONCATENATE(DATOS!D10,DATOS!B44, DATOS!D11)","v":"   "},"Sexo:",{"$f":"DATOS!D12","v":0}]
[null,"Fecha de nacimiento:",null,{"$f":"DATOS!D9","v":"00:00:00"},null,null,null,null,"Expediente:",{"$f":"DATOS!D8","v":0}]
[null,"Diagnóstico preoperatorio:"]
[null,{"$f":"DATOS!D13","v":0}]
[]
[null,"Operación proyectada:"]
[null,{"$f":"DATOS!D14","v":0}]
[]
[null,"Complicaciones posibles:"]
[null,{"$f":"DATOS!D31","v":0}]
[]
[]
[]
[null,"Por medio del presente manifiesto:"]
[null,"1. Que tengo conocimiento a través del cirujano tratante de los probables diagnósticos que presenta el paciente bajo mi tutela."]
[null,"2. Que me han informado a mi entera satisfaccción de los procedimientos médico-quirúrgicos a que será mi paciente sometido y de las posibles alternativas terapeúticas médicas y quirúrgicas durante la intervención."]
[]
[null,"3. Que autorizo a través de este Consentimiento Informado al personal autorizado y calificado del HOSPITAL DE LA NIÑEZ OAXAQUEÑA, para realizar los procedimientos médicos y quirúrgicos adecuados para mejorar o recuperar la salud de mi paciente. "]
[]
[null,"4. Que conozco que todo procedimiento quirúrgico tiene el riesgo inherente de complicaciones locales y sistémicas que incluso pueden poner la vida en peligro y específicamente por este procedimiento."]
[]
[null,"5. Que se me ha informado ampliamente y a mi entera satisfacción sobre el resultado de la intervención y el pronóstico de la misma."]
[null,"6. Que me comprometo a solicitar mayor información médica o acudir a revisión médica ante cualquier duda o molestia."]
[null,"7. Se me informó que en el caso de Cirugía Electiva (que no es de Urgencia) existe la posibilidad  de ser diferida en caso de que haya otra cirugía de Urgencia calificada."]
[]
[null,"Por lo tanto es mi libre decisión, consciente e informada aceptar el procedimiento, por lo que firmo bajo mi libre voluntad y en presencia de un testigo que yo escogí, sin haber estado sujeto a ningún tipo de presión o coerción. "]
[null,"Así mismo aceptaría la intervención de la Comisión Nacional de Arbitraje Médico para cualquier posible diferencia en relación a la atención médica recibida por conducto de todo el personal del HOSPITAL DE LA NIÑEZ OAXAQUEÑA."]
[]
[]
[null,"Nombre completo  y firma del familiar , tutor y/o representante legal.",null,null,null,null,null,"Nombre y firma del testigo"]
[]
[]
[null,"Declaración médica:"]
[null,"He explicado el contenido de este documento y he respondido todas las preguntas del paciente  y familiar, tutor y/o Representante legal, por lo que considero  se encuentra  debidamente informado del procedimiento a realizar  y de sus posibles complicaciones . "]
[]
[null,"Lo anterior con fundamento en el Artículo 80 del Reglamento de la Ley General de Salud en Materia de Prestación de Servicios de Atención Médica y en la Norma Oficial Mexicana NOM 004-SSA3-2012 del Expediente Clínico."]
[null,{"$f":"DATOS!D15","v":0},null,null,null,null,null,{"$f":"DATOS!D19","v":"00:00:00"}]
[null,"Nombre, cédula y firma del médico",null,null,null,null,null,"Fecha y hora"]
[]
[null,null,null,null,null,null,null,null,"HNO-SM-MED-2023-12"]

{"sheet":"Consentimiento Hemoderivados","index":6,"n_rows":37,"n_cols":11,"rows_kept":37,"cut":false,"hidden":false,"merged":[[7,3,7,6],[16,1,16,10],[12,1,12,10],[14,1,14,10],[20,1,20,10],[0,1,0,6],[2,2,2,5],[3,2,3,5],[23,1,23,10],[26,7,26,10],[24,1,24,10],[25,1,25,5],[25,7,25,10],[4,1,4,10],[5,2,5,6],[6,3,6,6],[7,9,7,10],[8,1,8,10],[9,1,9,10],[10,1,10,10],[11,1,11,10],[28,1,28,10],[26,1,26,5],[13,1,13,10],[36,8,36,9],[35,7,35,10],[29,1,29,10],[31,1,31,10],[32,1,32,2],[32,3,32,6],[32,9,32,10],[30,1,30,10],[33,6,33,10],[15,1,15,10],[19,1,19,10],[18,1,18,10]]}
[null,"CONSENTIMIENTO INFORMADO PARA TERAPIA "]
[null,null,"TRANSFUSIONAL DE HEMODERIVADOS"]
[null,null,"SUBDIRECCIÓN MÉDICA "]
[null,null,"DEPARTAMENTO DE CIRUGÍA PEDIÁTRICA"]
[]
[null,"LUGAR:","San Bartolo Coyotepec, Oaxaca ",null,null,null,null,"FECHA:",{"$f":"DATOS!D19","v":"00:00:00"},"HORA",{"$f":"DATOS!D20","v":"00:00:00"}]
[null,"Nombre del paciente:",null,{"$f":"DATOS!D7","v":0},null,null,null,"EDAD:",{"$f":"CONCATENATE(DATOS!D10,DATOS!B44, DATOS!D11)","v":"   "},"SEXO:",{"$f":"DATOS!D12","v":0}]
[null,"Fecha de nacimiento:",null,{"$f":"DATOS!D9","v":"00:00:00"},null,null,null,null,"Expediente:",{"$f":"DATOS!D8","v":0}]
[null,"Diagnóstico preoperatorio:"]
[null,{"$f":"DATOS!D13","v":0}]
[null,"Operación proyectada:"]
[null,{"$f":"DATOS!D14","v":0}]
[null,"Por este conducto doy autorización para que mi hijo sea sometido a \"Transfusión de componentes sanguíneos (sangre total, paquete globular, plasma, crioprecipitados, plaquetas) con sangre alogénica\"."]
[null,"Se ha hecho de mi conocimiento que mi paciente necesita o es posible que necesite transfusiones de productos sanguíneos y me han explicado los riesgos que pueden producirse en caso de no recibir este tratamiento. Se me explicó que el procedimiento de transfusión consiste en la aplicación de sangre estudiada y negativa para agentes infectantes de las siguientes enfermedades: Sífilis, Chagas, VIH (Virus de la Inmunodeficiencia Humana), VHC (Virus de la Hepatitis C), Brucella. Sin embargo existe un riesgo, este es muy bajo (inferior a 1 por cada 95 000 transfusiones), pero no nulo, de contraer infecciones por los Virus de la Hepatitis C, Hepatitis B, VIH-SIDA u otros menos frecuentes a través de la transfusión."]
[null,"La sangre que se utiliza, para almacenarse requiere de ser mezclada con un anticoagulante y que para aplicarse deberá de usarse un filtro de transfusión. Para que la transfusión se lleve a cabo, a mi paciente se le realizarán previamente: toma de muestra de sangre para realizar análisis y determinar su grupo sanguíneo ABO y Rh, pruebas de compatibilidad sanguínea y todas las pruebas que se consideren necesarias para evitar o disminuir posibles complicaciones inmunohematológicas como consecuencia de transfusiones previas. "]
[null,"Se me explicó además que existen efectos adversos asociados a la transfusión como son: Reacciones alérgicas (inmediatas o tardías), debido al efecto de determinados componentes (proteínas) del donante que son extraños al receptor, reacciones febriles no hemolíticas, de las cuales las reacciones leves (fiebre, escalosfríos) son relativamente frecuentes y fáciles de tratar; riesgo de transmision de agentes infecciosos en periodo de \"ventana\" (Tiempo en el cual aún no es posible detectarlo en la sangre del donador pero que ya puede ser infectante) y por tanto existe una mínima posibilidad de contagio. Esto a pesar de que la selección de donantes es muy cuidadosa y las precauciones para detectar sangre contaminada son máximas en el Banco de Sangre."]
[null,"También se me explicó que puede haber reacción hemolítica transfusional por: Presencia de anticuerpos irregulares o la probabilidad mínima de que exista incompatibilidad ABO y muy raramente estas reacciones pueden ser graves o muy graves y comprometer la vida del paciente (insuficiencia respiratoria, hipotensión grave o incluso paro cardiorrespiratorio). En caso de presentarse cualquier reacción adversa inmediata y grave, existe personal altamente entrenado para tratar a mi paciente y administrar los medicamentos y la atención que requiera. En caso de ser aceptada la transfusión, el personal responsable a cargo de mi paciente, tiene el compromiso de vigilar la transfusión con respecto a: Cantidad de unidades, volumen, número de identificación de las unidades de sangre o de sus componentes transfundidos; fecha y hora de inicio y finalización de cada transfusión; control de la transfusión. En caso de reacciones adversas a la transfusión indicar su tipo y manejo, así como, los procedimientos para efecto de la investigación correspondiente.  Nombre completo y firma del médico que indicó la transfusión, así como, del personal de salud encargado de la aplicación, vigilancia y control de la transfusión."]
[]
[null,"POR LO TANTO DECLARO QUE:"]
[null,"El médico me explicó de manera clara y completa los motivos de la necesidad de realizar la/las transfusión (es) sanguínea (s), sus riesgos, sus beneficios y otras alternativas. "]
[null,"1. He recibido información amplia sobre el procedimiento de transfusión de sangre y sus componentes, con respuesta a todas mis preguntas y estoy satisfecho (a) con la explicación."]
[]
[]
[null,"2. Ejerciendo mi derecho de autonomía y libre de presiones: Por ello conociendo los beneficios y riesgos de este tratamiento, liberando de toda responsabilidad al personal médico y paramédico del Hospital de la Niñez Oaxaqueña."]
[null,"Los médicos han contestado mis preguntas, me han explicado los riesgos y beneficios esperados del tratamiento, por lo que estoy de acuerdo en recibir la transfusión de sangre alogénica."]
[]
[null,"Nombre completo y firma del familiar, tutor y/o representante legal",null,null,null,null,null,"Nombre y firma del testigo"]
[]
[null,"DECLARACIÓN DEL MÉDICO"]
[null,"He explicado al paciente y/o persona autorizada para otorgar el presente consentimiento, la naturaleza de la (s) condición (es) que presenta en la actualidad. Además le he informado con un lenguaje común los beneficios esperados y los posibles riesgos o complicaciones que pudieran estar asociadas a este procedimiento. El (la)"]
[]
[null,"ha comprendido la explicación y ha consentido en su realización en pleno uso de sus facultades, lo anterior con fundamento en el Artículo 80 del Reglamento de la Ley General de Salud en Materia de Prestación de Servicios de Atención Médica y en la Norma Oficial Mexicana NOM-004-SSA3-2012 del Expediente Clínico."]
[null,"Departamento o Servicio: ",null,{"$f":"DATOS!D16","v":0},null,null,null,null,"Fecha: ",{"$f":"DATOS!D19","v":"00:00:00"}]
[null,"Nombre completo, firma y cédula profesional del médico:",null,null,null,null,{"$f":"DATOS!D15","v":0}]
[]
[null,null,null,null,null,null,null,"Este formato debe ser anexado al expediente clínico"]
[null,null,null,null,null,null,null,null,"HNO-SM-MED-2021-11"]

{"sheet":"Consentimiento Anestesia","index":7,"n_rows":49,"n_cols":11,"rows_kept":49,"cut":false,"hidden":false,"merged":[[21,1,21,10],[5,1,5,10],[12,4,12,5],[12,7,12,8],[9,2,9,10],[11,1,11,10],[12,1,12,3],[15,1,15,10],[16,3,16,10],[17,1,17,10],[18,1,18,10],[20,1,20,10],[13,1,13,3],[13,4,13,5],[32,1,32,4],[32,7,32,10],[22,1,22,10],[23,1,23,10],[28,1,28,10],[29,1,29,10],[24,1,25,10],[26,1,26,10],[27,3,27,6],[1,1,1,9],[2,4,2,7],[3,4,3,7],[47,1,47,10],[48,1,48,10],[40,1,40,10],[44,1,44,10],[45,1,45,6],[45,7,45,9],[46,1,46,10],[33,1,33,4],[33,7,33,10],[36,1,36,10],[37,1,38,10],[39,1,39,10],[30,1,30,10]]}
[]
[null,"CARTA DE CONSENTIMIENTO INFORMADO PARA LA APLICACIÓN DE ANESTESIA"]
[null,null,null,null,"SUBDIRECCIÓN MÉDICA"]
[null,null,null,null,"DEPARTAMENTO DE CIRUGÍA PEDIÁTRICA"]
[]
[]
[]
[null,null,null,null,"San Bartolo Coyotepec, Oaxaca a: ",null,null,"de ",null,"del "]
[]
[null,"Yo: "]
[null,"en pleno uso de mis facultades mentales y en calidad de tutor y/o representante legal del paciente que responde al nombre de:"]
[null,{"$f":"DATOS!D7","v":0}]
[null,"con número de expediente:",null,null,{"$f":"DATOS!D8","v":0},null,"Edad:",{"$f":"CONCATENATE(DATOS!D10,DATOS!B44, DATOS!D11)","v":"   "},null,"Sexo:",{"$f":"DATOS!D12","v":0}]
[null,"y Fecha de nacimiento:",null,null,{"$f":"DATOS!D9","v":"00:00:00"}]
[]
[null,"DECLARO EN FORMA LIBRE Y VOLUNTARIA LO SIGUIENTE."]
[null,"1. Acepto al Dr.(a):"]
[null,"quien ha sido designado por el Hospital como el Médico Anestesiólogo de mi representado,quien cuenta con cédula profesional expedida por la Dirección General de Profesiones."]
[null,"2. Entiendo que las complicaciones, aunque poco probables, son posibles, y pueden ser desde leves, tales como: pérdida o daño de una pieza dental, dolor de espalda, o en el sitio de punción, dolor de cabeza, alteraciones asociadas con la posición quirúrgica, dificultad transitoria para orinar, molestias oculares o de garganta, heridas en boca y tos; hasta severas tales como aspiración del contenido gástrico hacia vía aérea, descompensación de enfermedades crónicas, alteracionescardíacas, renales, de la presión arterial, complicaciones pulmonares, reacciones medicamentosas, transfusionales, lesiones nerviosas o de médula espinal. Todas ellas pudieran causar secuelas permanentes e incluso llevar  al fallecimiento. El beneficio que obtendra mi representado con la aplicación de la anestesia es que se pueda llevar a cabo el procedimiento diagnóstico y/o quirúrgico llamado:"]
[]
[null,{"$f":"DATOS!D14","v":0}]
[null,"para intentar mejorar su estado de salud."]
[null,"3. Entiendo también que todo acto médico implica una serie de riesgos que pueden deberse al estado de salud actual, alteraciones congénitas o anatómicas que padezca, antecedentes de enfermedades, tratamientos actuales y/o previos a la técnica anestésica o quirúrgica, al equipo médico utilizado y/o a la enfermedad que condiciones el procedimiento médico o quirúrgico al que he decidido se someta mi representado. "]
[null,"4. Estoy consciente de que puede requerir de tratamientos complementarios que aumente su estancia hospitalaria con la participación de otros servicios o unidades médicas, con el incremento consecuente de los costos."]
[null,"5. El Médico Anestesiólogo ha respondido mis dudas y me ha explicado en lenguaje claro y sencillo las alternativas anestésicas posibles y ACEPTO anestesia tipo:"]
[]
[]
[null,"que es de carácter :",null,{"$f":"DATOS!D6","v":0},null,null,null,"y he entendido los posibles riesgos y complicaciones de esta técnica anestésica."]
[null,"6. En mi presencia han sido llenados  o cancelados todos los espacios en blanco que se presentan en este documento."]
[null,"7. Se me ha informado que de no existir este documento en el expediente, no se podrá llevar a cabo el procedimiento planeado."]
[null,"8. En virtud de estar aclaradas todas mis dudas, DOY MI CONSENTIMIENTO para que mi representado, pueda ser anestesiado con los riesgos inherentes al procedimiento y autorizo al anestesiólogo (a)  para que de acuerdo a su criterio, cambie la técnica anestésica intentando con ello resolver cualquier situación que se presente durante el acto anestésico-quirúrgico o de acuerdo a las condiciones físicas y/o emocionales de mi representado."]
[]
[null,"  "]
[null,"Nombre, cédula y firma del médico",null,null,null,null,null,"Nombre y firma del familiar, tutor y/o representante legal"]
[]
[]
[null,"NEGACION DEL CONSENTIMIENTO INFORMADO"]
[null,"Por la presente, NIEGO el consentimiento para que sean practicados en mi representado el manejo de la técnica anestésica y lo que derive de ella, consciente de que he sido informado de las consecuencias que resulten de esta negativa."]
[]
[null,"                                                                                                                    "]
[null,"Nombre y firma del familiar, tutor y/o representante legal"]
[]
[]
[]
[null,"REVOCACIÓN DEL CONSENTIMIENTO INFORMADO"]
[null,"Por la presente, REVOCO el consentimiento otorgado en fecha:",null,null,null,null,null,null,null,null,"y es mi deseo no proseguir el manejo anestésico que"]
[null,"se indica en mi representado a partir de esta fecha, relevando de toda responsabilidad al Anestesiólogo (a), toda vez que he entendido los alcances que conlleva esta revocación."]
[null,"                                                                                                                    "]
[null,"Nombre y firma del familiar, tutor y/o representante legal                                                                                                                                                 HNO-SM-MED-2021-14"]

{"sheet":"Solicitud Patología","index":8,"n_rows":48,"n_cols":14,"rows_kept":48,"cut":false,"hidden":false,"merged":[[10,9,10,11],[10,12,10,15],[45,3,45,15],[46,6,46,15],[15,1,15,15],[16,1,22,15],[23,1,23,3],[23,4,23,8],[23,9,23,11],[23,12,23,15],[1,3,1,12],[2,1,2,4],[3,1,3,15],[4,1,4,4],[7,10,7,11],[4,6,4,10],[5,6,5,10],[47,13,47,14],[9,1,9,2],[9,3,9,15],[14,1,14,7],[14,8,14,15],[10,1,10,2],[11,2,11,4],[11,6,11,7],[11,9,11,10],[11,12,11,15],[12,1,12,2],[12,3,12,6],[12,7,12,9],[12,10,12,15],[13,4,13,15],[10,3,10,8]]}
[]
[]
[null,"Sello de la Institución"]
[null,"Solicitud para Estudio de Anatomía Patológica"]
[null,null,null,null,null,null,"SUBDIRECCIÓN MÉDICA"]
[null,null,null,null,null,null,"DEPARTAMENTO DE CIRUGÍA PEDIÁTRICA"]
[]
[null,null,null,null,null,null,null,null,null,"Envío a:","PUEBLA",null,null,"HNO"]
[]
[null,"Nombre(s):",null,{"$f":"DATOS!D7","v":0}]
[null,"Expediente:",null,{"$f":"DATOS!D8","v":0},null,null,null,null,null,"Fecha de nacimiento:",null,null,{"$f":"DATOS!D9","v":"00:00:00"}]
[null,"Género:",{"$f":"DATOS!D12","v":0},null,null,"Edad:",{"$f":"CONCATENATE(DATOS!D10, \" \", DATOS!D11)","v":" "},null,"Cama:",null,null,"Fecha:",{"$f":"DATOS!D19","v":"00:00:00"}]
[null,"Servicio:",null,{"$f":"DATOS!D16","v":0},null,null,null,"Médico Solicitante:",null,null,{"$f":"DATOS!D15","v":0}]
[null,"Diagnóstico clínico:",null,null,{"$f":"DATOS!D13","v":0}]
[null,"Pieza Quirúrgica enviada (Tipo de tejido y localización):"]
[null,"Datos clínicos y quirúrgicos de interés:"]
[]
[]
[]
[]
[]
[]
[]
[null,"Fecha de recepción:                                                                           Núm. De Biopsia:                                                                ",null,null,null,null,null,null,null,"Número de Biopsia:"]
[null,"Descripción macroscópica:                                                                                                                                                                       "]
[]
[]
[]
[]
[]
[]
[]
[]
[]
[null,"Descripción microscópica"]
[]
[]
[]
[]
[]
[]
[]
[]
[]
[]
[null,"DIAGNOSTICO:"]
[null,"Nombre y firma del Médico Especialista:"]
[null,null,null,null,null,null,null,null,null,null,null,null,null,"HNO-SM-MED-2021-15"]